fUSD/lending_fUSD_20250814
["ID","MTS","AMOUNT","RATE_DAILY","PERIOD"]
[379186736,1755179488419,-400.0,0.00027671,2]
[379186737,1755179488429,-4631.05,0.00027671,2]
[379186738,1755179488439,-437.205706,0.00027671,7]
[379186739,1755179488450,-400.0,0.00027671,2]
[379186740,1755179488461,-4589.95,0.00027671,2]
[379186741,1755179488476,-1013.47,0.00027671,2]
[379186742,1755179488485,-542.39,0.00027671,2]
[379186743,1755179488497,-512.73,0.00027671,2]
[379186744,1755179488506,-400.0,0.00027671,2]
[379186745,1755179488516,-400.0,0.00027671,2]
[379186746,1755179488525,-1125.63,0.00027671,2]
[379186747,1755179488535,-1659.86,0.00027671,2]
[379186748,1755179488544,-469.01,0.00027671,2]
[379186749,1755179488553,-4842.72,0.00027671,2]
[379186750,1755179488562,-400.0,0.00027671,2]
[379186751,1755179488571,-1996.59,0.00027671,2]
[379186752,1755179488580,-1253.2,0.00027671,2]
[379186753,1755179488590,-4700.94,0.00027671,2]
[379186754,1755179488599,-400.0,0.00027671,2]
[379186755,1755179488608,-412.22,0.00027671,2]
[379186756,1755179488617,-422.09,0.00027671,2]
[379186757,1755179488626,-2680.43,0.00027671,2]
[379186758,1755179488635,-1336.29,0.00027671,2]
[379186759,1755179488645,-400.0,0.00027671,2]
[379186760,1755179488654,-2693.95,0.00027671,2]
[379186761,1755179488663,-948.84,0.00027671,2]
[379186762,1755179488672,-400.0,0.00027671,2]
[379186763,1755179488682,-400.0,0.00027671,2]
[379186764,1755179488691,-2964.42,0.00027671,2]
[379186765,1755179488700,-646.66,0.00027671,2]
[379186766,1755179488710,-400.0,0.00027671,2]
[379186767,1755179488719,-602.0,0.00027671,2]
[379186768,1755179488729,-3525.56,0.00027671,2]
[379186769,1755179488738,-400.0,0.00027671,2]
[379186770,1755179488749,-348.66,0.00027671,2]
[379186771,1755179488759,-400.0,0.00027671,2]
[379186772,1755179488771,-400.0,0.00027671,2]
[379186773,1755179488781,-1345.800827,0.00027671,2]
[379186774,1755179488790,-2263.2565,0.00027671,2]
[379186775,1755179488800,-400.0,0.00027671,2]
[379186776,1755179488809,-1249.882923,0.00027671,7]
[379186777,1755179488818,-1249.882923,0.00027671,7]
[379186778,1755179488827,-3040.22,0.00027671,2]
[379186779,1755179488837,-3964.46,0.00027671,2]
[379186780,1755179488847,-400.0,0.00027671,2]
[379186781,1755179488856,-1151.41,0.00027671,2]
[379186782,1755179488866,-1585.64,0.00027671,2]
[379186783,1755179488875,-1249.882923,0.00027671,7]
[379186784,1755179488885,-1249.882923,0.00027671,7]
[379186785,1755179488895,-507.53,0.00027671,2]
[379186786,1755179488904,-2997.23,0.00027671,2]
[379186787,1755179488913,-1401.87,0.00027671,2]
[379186788,1755179488923,-970.75,0.00027671,2]
[379186789,1755179488932,-1013.12,0.00027671,2]
[379186790,1755179488942,-2621.0,0.00027671,2]
[379186791,1755179488951,-400.0,0.00027671,2]
[379186792,1755179488961,-4281.06,0.00027671,2]
[379186793,1755179488971,-244.16869,0.00027671,2]
[379186794,1755179488981,-2241.05,0.00027671,2]
[379186795,1755179488993,-3832.87,0.00027671,2]
[379186796,1755179489002,-2280.38,0.00027671,2]
[379186797,1755179489011,-400.0,0.00027671,2]
[379186798,1755179489021,-550.18,0.00027671,2]
[379186799,1755179489030,-3937.47,0.00027671,2]
[379186800,1755179489040,-1110.14,0.00027671,2]
[379186801,1755179489050,-3469.49,0.00027671,2]
[379186802,1755179489059,-442.77,0.00027671,2]
[379186803,1755179489069,-205.073705,0.00027671,7]
[379186804,1755179489079,-921.088257,0.00027671,7]
[379186805,1755179489088,-400.0,0.00027671,2]
[379186806,1755179489098,-205.073705,0.00027671,7]
[379186807,1755179489108,-921.088257,0.00027671,7]
[379186808,1755179489118,-532.57,0.00027671,2]
[379186809,1755179489128,-400.0,0.00027671,2]
[379186810,1755179489138,-1874.239285,0.00027671,2]
[379186811,1755179489148,-400.0,0.00027671,2]
[379186812,1755179489158,-400.0,0.00027671,2]
[379186813,1755179489168,-1863.76,0.00027671,2]
[379186814,1755179489178,-955.05,0.00027671,2]
[379186815,1755179489187,-921.088257,0.00027671,7]
[379186816,1755179489197,-2043.25,0.00027671,2]
[379186817,1755179489207,-4862.92,0.00027671,2]
[379186818,1755179489216,-205.073705,0.00027671,7]
[379186819,1755179489226,-921.088257,0.00027671,7]
[379186820,1755179489236,-205.073705,0.00027671,7]
[379186821,1755179489248,-400.0,0.00027671,2]
[379186822,1755179489258,-1115.2,0.00027671,2]
[379186823,1755179489268,-275.76787945,0.00027671,2]
[379186824,1755179489278,-400.0,0.00027671,2]
[379186825,1755179489291,-400.0,0.00027671,2]
[379186826,1755179489302,-400.0,0.00027671,2]
[379186827,1755179489312,-388.001116,0.00027671,7]
[379186828,1755179489322,-767.07,0.00027671,2]
[379186829,1755179489332,-603.06,0.00027671,2]
[379186830,1755179489343,-5472.79,0.00027671,2]
[379186831,1755179489353,-2567.61,0.00027671,2]
[379186832,1755179489363,-400.0,0.00027671,2]
[379186833,1755179489374,-1520.48,0.00027671,2]
[379186834,1755179489385,-388.001116,0.00027671,7]
[379186835,1755179489395,-400.0,0.00027671,2]
[379186836,1755179489404,-419.04787398,0.00027671,2]
[379186837,1755179489415,-800.51,0.00027671,2]
[379186838,1755179489424,-2524.08,0.00027671,2]
[379186839,1755179489434,-400.0,0.00027671,2]
[379186840,1755179489443,-400.0,0.00027671,2]
[379186841,1755179489453,-1203.84,0.00027671,2]
[379186842,1755179489463,-4022.99,0.00027671,2]
[379186843,1755179489474,-430.18,0.00027671,2]
[379186844,1755179489485,-150.664672,0.00027671,2]
[379186845,1755179489497,-628.0,0.00027671,2]
[379186846,1755179489507,-400.0,0.00027671,2]
[379186847,1755179489518,-305.34951362,0.00027671,2]
[379186848,1755179489528,-400.0,0.00027671,2]
[379186849,1755179489538,-2576.65,0.00027671,2]
[379186850,1755179489548,-2704.51,0.00027671,2]
[379186851,1755179489563,-2372.72,0.00027671,2]
[379186852,1755179489576,-400.0,0.00027671,2]
[379186853,1755179489586,-1470.71,0.00027671,2]
[379186854,1755179489597,-495.89,0.00027671,2]
[379186855,1755179489606,-400.0,0.00027671,2]
[379186856,1755179489616,-160.512608,0.00027671,2]
[379186857,1755179489626,-877.22,0.00027671,2]
[379186858,1755179489637,-2005.33,0.00027671,2]
[379186859,1755179489649,-400.0,0.00027671,2]
[379186860,1755179489659,-1636.72,0.00027671,2]
[379186861,1755179489670,-4962.3,0.00027671,2]
[379186862,1755179489681,-400.0,0.00027671,2]
[379186863,1755179489691,-406.87050882,0.00027671,2]
[379186864,1755179489701,-3489.73,0.00027671,2]
[379186865,1755179489711,-1488.37,0.00027671,2]
[379186866,1755179489721,-400.0,0.00027671,2]
[379186867,1755179489731,-400.0,0.00027671,2]
[379186868,1755179489744,-845.89,0.00027671,2]
[379186869,1755179489756,-588.14,0.00027671,2]
[379186870,1755179489766,-1640.18,0.00027671,2]
[379186871,1755179489776,-400.0,0.00027671,2]
[379186872,1755179489787,-400.0,0.00027671,2]
[379186873,1755179489798,-400.0,0.00027671,2]
[379186874,1755179489808,-4053.73,0.00027671,2]
[379186875,1755179489818,-3178.77,0.00027671,2]
[379186876,1755179489828,-1419.89,0.00027671,2]
[379186877,1755179489838,-4054.62,0.00027671,2]
[379186878,1755179489848,-945.16,0.00027671,2]
[379186879,1755179489859,-400.0,0.00027671,2]
[379186880,1755179489870,-400.0,0.00027671,2]
[379186881,1755179489880,-4199.46,0.00027671,2]
[379186882,1755179489890,-151.0,0.00027671,7]
[379186883,1755179489900,-151.0,0.00027671,7]
[379186884,1755179489910,-4118.68,0.00027671,2]
[379186885,1755179489920,-151.0,0.00027671,7]
[379186886,1755179489930,-151.0,0.00027671,7]
[379186887,1755179489940,-400.0,0.00027671,2]
[379186888,1755179489951,-400.0,0.00027671,2]
[379186889,1755179489961,-400.0,0.00027671,2]
[379186890,1755179489971,-400.0,0.00027671,2]
[379186891,1755179489981,-600.65,0.00027671,2]
[379186892,1755179489994,-3346.63,0.00027671,2]
[379186893,1755179490003,-3485.71,0.00027671,2]
[379186894,1755179490014,-723.12,0.00027671,2]
[379186895,1755179490024,-400.0,0.00027671,2]
[379186896,1755179490035,-434.12,0.00027671,2]
[379186897,1755179490045,-400.0,0.00027671,2]
[379186898,1755179490055,-400.0,0.00027671,2]
[379186899,1755179490065,-725.53,0.00027671,2]
[379186900,1755179490075,-2032.37,0.00027671,2]
[379186901,1755179490085,-326.05624125,0.00027671,2]
[379186902,1755179490095,-400.0,0.00027671,2]
[379186903,1755179490105,-3404.46,0.00027671,2]
[379186904,1755179490116,-400.0,0.00027671,2]
[379186905,1755179490126,-1129.34,0.00027671,2]
[379186906,1755179490136,-400.0,0.00027671,2]
[379186907,1755179490147,-1686.02,0.00027671,2]
[379186908,1755179490157,-2117.86,0.00027671,2]
[379186909,1755179490166,-400.0,0.00027671,2]
[379186910,1755179490176,-1102.35,0.00027671,2]
[379186911,1755179490186,-1368.51,0.00027671,2]
[379186912,1755179490196,-198.926738,0.00027671,7]
[379186913,1755179490206,-496.57,0.00027671,2]
[379186914,1755179490215,-956.37,0.00027671,2]
[379186915,1755179490225,-478.3,0.00027671,2]
[379186916,1755179490235,-400.0,0.00027671,2]
[379186917,1755179490249,-400.0,0.00027671,2]
[379186918,1755179490259,-1490.5,0.00027671,2]
[379186919,1755179490269,-198.926738,0.00027671,7]
[379186920,1755179490280,-400.0,0.00027671,2]
[379186921,1755179490291,-1617.79,0.00027671,2]
[379186922,1755179490301,-400.0,0.00027671,2]
[379186923,1755179490316,-317.406984,0.00027671,7]
[379186924,1755179490326,-2387.42,0.00027671,2]
[379186925,1755179490336,-2471.16,0.00027671,2]
[379186926,1755179490346,-2640.82,0.00027671,2]
[379186927,1755179490358,-400.0,0.00027671,2]
[379186928,1755179490368,-1417.13,0.00027671,2]
[379186929,1755179490379,-317.406984,0.00027671,7]
[379186930,1755179490389,-1255.24,0.00027671,2]
[379186931,1755179490400,-2041.1,0.00027671,2]
[379186932,1755179490410,-1827.21,0.00027671,2]
[379186933,1755179490420,-400.0,0.00027671,2]
[379186934,1755179490431,-733.3,0.00027671,2]
[379186935,1755179490440,-400.0,0.00027671,2]
[379186936,1755179490451,-2648.4,0.00027671,2]
[379186937,1755179490460,-1966.84,0.00027671,2]
[379186938,1755179490470,-509.56830757,0.00027671,2]
[379186939,1755179490480,-400.0,0.00027671,2]
[379186940,1755179490495,-1228.52,0.00027671,2]
[379186941,1755179490505,-400.0,0.00027671,2]
[379186942,1755179490516,-2391.98,0.00027671,2]
[379186943,1755179490526,-400.0,0.00027671,2]
[379186944,1755179490536,-2760.56,0.00027671,2]
[379186945,1755179490546,-649.39,0.00027671,2]
[379186946,1755179490556,-400.0,0.00027671,2]
[379186947,1755179490566,-1042.12,0.00027671,2]
[379186948,1755179490576,-3078.34,0.00027671,2]
[379186949,1755179490587,-400.0,0.00027671,2]
[379186950,1755179490598,-3830.22,0.00027671,2]
[379186951,1755179490608,-3538.65,0.00027671,2]
[379186952,1755179490618,-2394.12,0.00027671,2]
[379186953,1755179490628,-565.99,0.00027671,2]
[379186954,1755179490638,-400.0,0.00027671,2]
[379186955,1755179490648,-400.0,0.00027671,2]
[379186956,1755179490658,-533.95,0.00027671,2]
[379186957,1755179490668,-400.0,0.00027671,2]
[379186958,1755179490679,-838.88,0.00027671,2]
[379186959,1755179490689,-407.01,0.00027671,2]
[379186960,1755179490700,-2740.37,0.00027671,2]
[379186961,1755179490710,-2581.02,0.00027671,2]
[379186962,1755179490719,-151.0,0.00027671,7]
[379186963,1755179490729,-1770.66,0.00027671,2]
[379186964,1755179490739,-2494.86,0.00027671,2]
[379186965,1755179490752,-200.0,0.00027671,2]
[379186966,1755179490762,-3894.47,0.00027671,2]
[379186967,1755179490771,-1318.86,0.00027671,2]
[379186968,1755179490781,-400.0,0.00027671,2]
[379186969,1755179490791,-400.0,0.00027671,2]
[379186970,1755179490802,-2679.99,0.00027671,2]
[379186971,1755179490811,-400.0,0.00027671,2]
[379186972,1755179490822,-2014.5,0.00027671,2]
[379186973,1755179490832,-400.0,0.00027671,2]
[379186974,1755179490842,-400.0,0.00027671,2]
[379186975,1755179490852,-418.71,0.00027671,2]
[379186976,1755179490862,-1728.76,0.00027671,2]
[379186977,1755179490872,-574.39,0.00027671,2]
[379186978,1755179490883,-400.0,0.00027671,2]
[379186979,1755179490894,-1222.6,0.00027671,2]
[379186980,1755179490905,-400.0,0.00027671,2]
[379186981,1755179490917,-953.48,0.00027671,2]
[379186982,1755179490929,-3147.47,0.00027671,2]
[379186983,1755179490941,-885.05,0.00027671,2]
[379186984,1755179490951,-400.0,0.00027671,2]
[379186985,1755179490962,-1666.83,0.00027671,2]
[379186986,1755179490972,-400.0,0.00027671,2]
[379186987,1755179490982,-1689.96,0.00027671,2]
[379186988,1755179490994,-737.75,0.00027671,2]
[379186989,1755179491004,-335.9536426,0.00027671,2]
[379186990,1755179491014,-400.0,0.00027671,2]
[379186991,1755179491025,-477.74,0.00027671,2]
[379186992,1755179491035,-989.87,0.00027671,2]
[379186993,1755179491045,-230.83,0.00027671,2]
[379186994,1755179491055,-1812.48,0.00027671,2]
[379186995,1755179491066,-400.0,0.00027671,2]
[379186996,1755179491076,-400.0,0.00027671,2]
[379186997,1755179491087,-2460.76,0.00027671,2]
[379186998,1755179491097,-3392.97,0.00027671,2]
[379186999,1755179491108,-400.0,0.00027671,2]
[379187000,1755179491120,-771.64,0.00027671,2]
[379187001,1755179491130,-1422.63,0.00027671,2]
[379187002,1755179491141,-3951.37,0.00027671,2]
[379187003,1755179491152,-698.98,0.00027671,2]
[379187004,1755179491163,-2447.93,0.00027671,2]
[379187005,1755179491174,-493.11,0.00027671,2]
[379187006,1755179491185,-400.0,0.00027671,2]
[379187007,1755179491197,-1849.35,0.00027671,2]
[379187008,1755179491207,-744.21,0.00027671,2]
[379187009,1755179491218,-400.0,0.00027671,2]
[379187010,1755179491228,-453.5,0.00027671,2]
[379187011,1755179491239,-400.0,0.00027671,2]
[379187012,1755179491251,-3183.89,0.00027671,2]
[379187013,1755179491262,-398.65483601,0.00027671,2]
[379187014,1755179491272,-2855.68,0.00027671,2]
[379187015,1755179491283,-851.38,0.00027671,2]
[379187016,1755179491297,-400.0,0.00027671,2]
[379187017,1755179491307,-853.01,0.00027671,2]
[379187018,1755179491318,-3117.94,0.00027671,2]
[379187019,1755179491329,-400.0,0.00027671,2]
[379187020,1755179491339,-587.52,0.00027671,2]
[379187021,1755179491349,-400.0,0.00027671,2]
[379187022,1755179491359,-658.73,0.00027671,2]
[379187023,1755179491369,-477.96,0.00027671,2]
[379187024,1755179491379,-420.91,0.00027671,2]
[379187025,1755179491392,-400.0,0.00027671,2]
[379187026,1755179491402,-2850.6,0.00027671,2]
[379187027,1755179491413,-1182.0,0.00027671,2]
[379187028,1755179491424,-400.0,0.00027671,2]
[379187029,1755179491434,-3021.49,0.00027671,2]
[379187030,1755179491445,-400.0,0.00027671,2]
[379187031,1755179491456,-400.0,0.00027671,2]
[379187032,1755179491467,-650.67,0.00027671,2]
[379187033,1755179491477,-400.0,0.00027671,2]
[379187034,1755179491488,-1069.99,0.00027671,2]
[379187035,1755179491502,-2445.369647,0.00027671,7]
[379187036,1755179491512,-2445.369647,0.00027671,7]
[379187037,1755179491522,-3326.01,0.00027671,2]
[379187038,1755179491533,-2964.4,0.00027671,2]
[379187039,1755179491543,-2443.64,0.00027671,2]
[379187040,1755179491554,-400.0,0.00027671,2]
[379187041,1755179491564,-507.58327348,0.00027671,2]
[379187042,1755179491574,-1062.8,0.00027671,2]
[379187043,1755179491585,-400.0,0.00027671,2]
[379187044,1755179491596,-1119.73,0.00027671,2]
[379187045,1755179491607,-2445.369647,0.00027671,7]
[379187046,1755179491618,-2445.369647,0.00027671,7]
[379187047,1755179491629,-719.43,0.00027671,2]
[379187048,1755179491641,-400.0,0.00027671,2]
[379187049,1755179491652,-2727.79,0.00027671,2]
[379187050,1755179491663,-2297.43,0.00027671,2]
[379187051,1755179491674,-400.0,0.00027671,2]
[379187052,1755179491684,-2739.51,0.00027671,2]
[379187053,1755179491695,-4320.26,0.00027671,2]
[379187054,1755179491706,-953.48,0.00027671,2]
[379187055,1755179491717,-477.57,0.00027671,2]
[379187056,1755179491728,-400.0,0.00027671,2]
[379187057,1755179491738,-518.91,0.00027671,2]
[379187058,1755179491751,-400.0,0.00027671,2]
[379187059,1755179491761,-3088.96,0.00027671,2]
[379187060,1755179491772,-675.72,0.00027671,2]
[379187061,1755179491782,-3797.96,0.00027671,2]
[379187062,1755179491793,-400.0,0.00027671,2]
[379187063,1755179491804,-2276.84,0.00027671,2]
[379187064,1755179491814,-1074.71,0.00027671,2]
[379187065,1755179491826,-1658.24,0.00027671,2]
[379187066,1755179491836,-400.0,0.00027671,2]
[379187067,1755179491847,-601.86,0.00027671,2]
[379187068,1755179491859,-400.0,0.00027671,2]
[379187069,1755179491869,-417.48,0.00027671,2]
[379187070,1755179491879,-400.0,0.00027671,2]
[379187071,1755179491889,-2727.25,0.00027671,2]
[379187072,1755179491900,-400.0,0.00027671,2]
[379187073,1755179491911,-890.66,0.00027671,2]
[379187074,1755179491921,-1824.1,0.00027671,2]
[379187075,1755179491931,-3409.33,0.00027671,2]
[379187076,1755179491941,-400.0,0.00027671,2]
[379187077,1755179491952,-1640.54,0.00027671,2]
[379187078,1755179491962,-628.08,0.00027671,2]
[379187079,1755179491973,-528.98,0.00027671,2]
[379187080,1755179491983,-1245.8,0.00027671,2]
[379187081,1755179491995,-400.0,0.00027671,2]
[379187082,1755179492006,-2765.91,0.00027671,2]
[379187083,1755179492016,-400.0,0.00027671,2]
[379187084,1755179492026,-400.0,0.00027671,2]
[379187085,1755179492037,-2603.23,0.00027671,2]
[379187086,1755179492047,-531.43,0.00027671,2]
[379187087,1755179492058,-803.72,0.00027671,2]
[379187088,1755179492068,-3815.95,0.00027671,2]
[379187089,1755179492078,-3120.09,0.00027671,2]
[379187090,1755179492088,-810.94,0.00027671,2]
[379187091,1755179492099,-1871.43,0.00027671,2]
[379187092,1755179492109,-400.0,0.00027671,2]
[379187093,1755179492119,-400.0,0.00027671,2]
[379187094,1755179492130,-2749.41,0.00027671,2]
[379187095,1755179492140,-7895.66,0.00027671,2]
[379187096,1755179492150,-965.75,0.00027671,2]
[379187097,1755179492160,-400.0,0.00027671,2]
[379187098,1755179492170,-991.65,0.00027671,2]
[379187099,1755179492180,-974.83,0.00027671,2]
[379187100,1755179492190,-4897.993536,0.00027671,7]
[379187101,1755179492200,-4897.993536,0.00027671,7]
[379187102,1755179492210,-4263.88,0.00027671,2]
[379187103,1755179492220,-400.0,0.00027671,2]
[379187104,1755179492230,-1335.83,0.00027671,2]
[379187105,1755179492240,-850.69,0.00027671,2]
[379187106,1755179492254,-2578.52,0.00027671,2]
[379187107,1755179492264,-400.0,0.00027671,2]
[379187108,1755179492274,-676.525315,0.00027671,7]
[379187109,1755179492285,-676.525315,0.00027671,7]
[379187110,1755179492296,-4897.993536,0.00027671,7]
[379187111,1755179492307,-4897.993536,0.00027671,7]
[379187112,1755179492318,-400.0,0.00027671,2]
[379187113,1755179492329,-456.78,0.00027671,2]
[379187114,1755179492339,-400.0,0.00027671,2]
[379187115,1755179492350,-5781.32,0.00027671,2]
[379187116,1755179492361,-676.525315,0.00027671,7]
[379187117,1755179492371,-6896.05,0.00027671,2]
[379187118,1755179492383,-676.525315,0.00027671,7]
[379187119,1755179492393,-6487.69,0.00027671,2]
[379187120,1755179492403,-1400.05,0.00027671,2]
[379187121,1755179492413,-400.0,0.00027671,2]
[379187122,1755179492424,-403.89,0.00027671,2]
[379187123,1755179492745,-639.64,0.00027671,2]
[379187124,1755179492783,-3164.98,0.00027671,2]
[379187125,1755179492793,-400.0,0.00027671,2]
[379187126,1755179492803,-2022.38,0.00027671,2]
[379187127,1755179492813,-2367.98,0.00027671,2]
[379187128,1755179492823,-824.93,0.00027671,2]
[379187129,1755179492833,-472.71,0.00027671,2]
[379187130,1755179492843,-400.0,0.00027671,2]
[379187131,1755179492854,-554.2,0.00027671,2]
[379187132,1755179492864,-400.0,0.00027671,2]
[379187133,1755179492874,-3033.65,0.00027671,2]
[379187134,1755179492884,-400.0,0.00027671,2]
[379187135,1755179492895,-1027.01,0.00027671,2]
[379187136,1755179492905,-1077.23,0.00027671,2]
[379187137,1755179492916,-400.0,0.00027671,2]
[379187138,1755179492926,-536.0,0.00027671,2]
[379187139,1755179492935,-400.0,0.00027671,2]
[379187140,1755179492945,-2768.3,0.00027671,2]
[379187141,1755179492955,-1036.36,0.00027671,2]
[379187142,1755179492965,-11242.21,0.00027671,2]
[379187143,1755179492975,-400.0,0.00027671,2]
[379187144,1755179492985,-8412.35,0.00027671,2]
[379187145,1755179492996,-2835.09,0.00027671,2]
[379187146,1755179493005,-400.0,0.00027671,2]
[379187147,1755179493016,-400.0,0.00027671,2]
[379187148,1755179493025,-1159.63,0.00027671,2]
[379187149,1755179493035,-466.49,0.00027671,2]
[379187150,1755179493046,-5796.16,0.00027671,2]
[379187151,1755179493056,-3296.51,0.00027671,2]
[379187152,1755179493066,-400.0,0.00027671,2]
[379187153,1755179493076,-400.0,0.00027671,2]
[379187154,1755179493086,-400.0,0.00027671,2]
[379187155,1755179493097,-400.0,0.00027671,2]
[379187156,1755179493107,-566.7,0.00027671,2]
[379187157,1755179493117,-421.78,0.00027671,2]
[379187158,1755179493127,-791.99,0.00027671,2]
[379187159,1755179493138,-2909.62,0.00027671,2]
[379187160,1755179493148,-6142.06,0.00027671,2]
[379187161,1755179493159,-7165.58,0.00027671,2]
[379187162,1755179493169,-400.0,0.00027671,2]
[379187163,1755179493179,-506.37302269,0.00027671,2]
[379187164,1755179493190,-590.98,0.00027671,2]
[379187165,1755179493200,-3513.41,0.00027671,2]
[379187166,1755179493210,-400.0,0.00027671,2]
[379187167,1755179493220,-2796.48,0.00027671,2]
[379187168,1755179493230,-2965.53,0.00027671,2]
[379187169,1755179493240,-400.0,0.00027671,2]
[379187170,1755179493253,-1151.15,0.00027671,2]
[379187171,1755179493264,-400.0,0.00027671,2]
[379187172,1755179493274,-500.0,0.00027671,2]
[379187173,1755179493284,-6269.11,0.00027671,2]
[379187174,1755179493300,-250.0,0.00027671,2]
[379187175,1755179493310,-400.0,0.00027671,2]
[379187176,1755179493320,-5007.6,0.00027671,2]
[379187177,1755179493330,-2998.41,0.00027671,2]
[379187178,1755179493341,-5388.83,0.00027671,2]
[379187179,1755179493351,-400.0,0.00027671,2]
[379187180,1755179493362,-405.16,0.00027671,2]
[379187181,1755179493372,-491.04,0.00027671,2]
[379187182,1755179493382,-400.0,0.00027671,2]
[379187183,1755179493393,-2819.78,0.00027671,2]
[379187184,1755179493404,-400.0,0.00027671,2]
[379187185,1755179493413,-400.0,0.00027671,2]
[379187186,1755179493424,-2759.32,0.00027671,2]
[379187187,1755179493435,-400.0,0.00027671,2]
[379187188,1755179493446,-400.0,0.00027671,2]
[379187189,1755179493456,-3024.01,0.00027671,2]
[379187190,1755179493467,-4550.46,0.00027671,2]
[379187191,1755179493477,-768.44,0.00027671,2]
[379187192,1755179493487,-937.58,0.00027671,2]
[379187193,1755179493500,-2430.95,0.00027671,2]
[379187194,1755179493510,-551.84,0.00027671,2]
[379187195,1755179493521,-400.0,0.00027671,2]
[379187196,1755179493530,-3415.94,0.00027671,2]
[379187197,1755179493540,-5179.13,0.00027671,2]
[379187198,1755179493551,-400.0,0.00027671,2]
[379187199,1755179493561,-400.0,0.00027671,2]
[379187200,1755179493571,-9573.61,0.00027671,2]
[379187201,1755179493581,-400.0,0.00027671,2]
[379187202,1755179493592,-1212.32,0.00027671,2]
[379187203,1755179493602,-811.77,0.00027671,2]
[379187204,1755179493614,-4887.69,0.00027671,2]
[379187205,1755179493624,-2404.25,0.00027671,2]
[379187206,1755179493634,-971.5,0.00027671,2]
[379187207,1755179493644,-3913.27,0.00027671,2]
[379187208,1755179493655,-400.0,0.00027671,2]
[379187209,1755179493665,-1418.63,0.00027671,2]
[379187210,1755179493675,-1264.53,0.00027671,2]
[379187211,1755179493684,-400.0,0.00027671,2]
[379187212,1755179493694,-177.604191,0.00027671,7]
[379187213,1755179493703,-151.0,0.00027671,7]
[379187214,1755179493713,-177.604191,0.00027671,7]
[379187215,1755179493722,-151.0,0.00027671,7]
[379187216,1755179493732,-400.0,0.00027671,2]
[379187217,1755179493741,-400.0,0.00027671,2]
[379187218,1755179493752,-828.74,0.00027671,2]
[379187219,1755179493762,-400.0,0.00027671,2]
[379187220,1755179493772,-757.72,0.00027671,2]
[379187221,1755179493782,-1690.89,0.00027671,2]
[379187222,1755179493792,-177.604191,0.00027671,7]
[379187223,1755179493802,-177.604191,0.00027671,7]
[379187224,1755179493812,-400.0,0.00027671,2]
[379187225,1755179493823,-400.0,0.00027671,2]
[379187226,1755179493832,-9148.58,0.00027671,2]
[379187227,1755179493842,-4189.74,0.00027671,2]
[379187228,1755179493852,-400.0,0.00027671,2]
[379187229,1755179493861,-5077.33,0.00027671,2]
[379187230,1755179493871,-1324.73,0.00027671,2]
[379187231,1755179493881,-15255.67,0.00027671,2]
[379187232,1755179493890,-4567.8,0.00027671,2]
[379187233,1755179493900,-5746.57,0.00027671,2]
[379187234,1755179493910,-5248.85,0.00027671,2]
[379187235,1755179493920,-400.0,0.00027671,2]